bitfinex/quotes_ETHUSD_20251226
["timestamp","ask_amount","ask_price","bid_price","bid_amount"]
[1766707201551,0.01033164,2904.6,2903.6,0.9902]
[1766707201853,0.97113164,2904.6,2903.6,0.9902]
[1766707202079,0.9608,2904.4,2903.6,0.9902]
[1766707202409,0.01033164,2905.1,2903.6,0.9902]
[1766707202410,0.9608,2905.0,2903.6,0.9902]
[1766707202542,0.9608,2904.8,2903.6,0.9902]
[1766707202746,1.00377668,2904.7,2903.6,0.9902]
[1766707203177,0.01033164,2904.6,2903.6,0.9902]
[1766707203382,0.97113164,2904.4,2903.6,0.002]
[1766707203579,0.97113164,2904.4,2903.6,0.03644]
[1766707203580,0.9608,2904.1,2903.6,0.03644]
[1766707203746,0.01033164,2903.7,2903.4,0.002]
[1766707203946,0.01033164,2903.7,2902.6,0.9882]
[1766707203947,0.97113164,2903.5,2902.6,0.9882]
[1766707204865,0.01033395,2904.0,2902.8,0.9882]
[1766707205051,0.01033395,2903.9,2903.0,0.9882]
[1766707205247,0.9608,2904.3,2903.0,0.9882]
[1766707205585,0.97113395,2904.2,2903.2,0.9882]
[1766707205747,0.97113395,2904.2,2902.8,0.9882]
[1766707205748,0.97113395,2903.8,2902.8,0.9882]
[1766707206169,0.97113395,2903.6,2902.8,0.9882]
[1766707206566,0.01033395,2903.4,2902.9,3.44483103]
[1766707206881,0.97113395,2903.6,2903.1,0.002]
[1766707207248,0.97113395,2904.4,2903.1,1.02464593]
[1766707207578,3.45287948,2904.9,2903.1,1.02464593]
[1766707207579,0.97113395,2904.1,2903.1,0.9902]
[1766707207877,0.01033395,2904.3,2903.3,0.9882]
[1766707208078,1.01411063,2904.4,2903.5,0.9882]
[1766707208282,0.01033395,2904.2,2903.5,0.9882]
[1766707208446,0.97113395,2904.2,2903.5,0.9882]
[1766707208651,0.97113395,2904.2,2903.5,4.43230761]
[1766707208851,0.97113395,2904.2,2903.5,3.44410761]
[1766707209483,0.97113395,2904.2,2903.6,0.03444]
[1766707210182,0.01033395,2904.2,2903.6,1.02264]
[1766707210657,0.01033395,2904.2,2903.7,3.44388194]
[1766707210856,0.01033395,2904.2,2903.8,0.03443763]
[1766707212281,0.01033164,2904.6,2903.8,0.48109778]
[1766707212483,0.97113395,2904.8,2903.8,1.02263763]
[1766707212683,0.01033164,2905.1,2904.0,0.9882]
[1766707212684,0.97113164,2905.1,2904.0,0.9882]
[1766707212981,0.01033395,2904.1,2903.2,0.9882]
[1766707213183,0.97113395,2903.9,2903.0,0.9]
[1766707213354,0.9608,2903.9,2903.0,0.9]
[1766707213686,0.9941,2904.3,2903.7,3.44386762]
[1766707213984,0.001,2904.3,2903.8,3.44374205]
[1766707214197,0.001,2904.3,2903.8,6.88750539]
[1766707214600,0.001,2904.3,2903.8,3.44374205]
[1766707214763,0.001,2904.3,2903.8,6.88750539]
[1766707215887,0.9941,2904.2,2903.7,3.44386837]
[1766707216069,0.9941,2904.2,2903.6,3.44398588]
[1766707216479,0.9941,2904.2,2903.5,3.44406631]
[1766707216786,0.9941,2904.2,2903.3,3.44435642]
[1766707216954,0.9941,2904.0,2903.3,3.44435642]
[1766707217290,0.9941,2904.0,2903.3,6.88871284]
[1766707217453,0.9941,2904.0,2903.3,7.23334848]
[1766707217657,0.9941,2904.0,2903.3,3.78899206]
[1766707217857,0.9941,2904.0,2903.3,3.44435642]
[1766707218473,0.9941,2904.0,2903.2,3.44443631]
[1766707218786,0.9941,2904.1,2903.3,0.03444356]
[1766707218969,0.9941,2904.1,2903.3,0.9548]
[1766707219487,0.001,2904.3,2903.3,0.9548]
[1766707219787,0.9951,2904.3,2903.3,0.9548]
[1766707219991,1.03807668,2904.3,2903.3,0.9548]
[1766707220284,0.001,2905.3,2904.2,0.9548]
[1766707220590,0.9941,2905.2,2904.1,0.9]
[1766707220778,0.9941,2905.2,2904.2,0.03443289]
[1766707220961,0.9941,2905.2,2904.3,6.88634094]
[1766707221287,0.9941,2905.2,2904.3,0.9]
[1766707221490,0.9941,2905.2,2904.2,0.9]
[1766707221677,0.9941,2905.0,2904.0,4.34349311]
[1766707221992,0.0344,2904.9,2904.0,0.9]
[1766707222187,0.0344,2905.2,2904.0,1.8548]
[1766707222494,0.0344,2905.2,2904.2,3.4432754]
[1766707222666,0.0354,2905.3,2904.3,0.0344317]
[1766707222861,0.38322001,2905.3,2904.3,3.47748417]
[1766707223062,0.38322001,2905.3,2904.3,4.43228417]
[1766707223285,0.38322001,2905.3,2904.3,0.9548]
[1766707223491,0.38322001,2905.3,2904.2,3.44320893]
[1766707223692,0.38251704,2905.2,2904.2,3.44320893]
[1766707223888,0.0344,2905.1,2904.1,0.9]
[1766707224066,0.0344,2905.1,2904.0,4.39826375]
[1766707224067,0.0344,2905.1,2904.0,3.44346375]
[1766707224257,0.0344,2905.1,2903.6,0.9548]
[1766707224258,0.9334,2905.1,2903.6,0.9548]
[1766707224664,0.9334,2905.1,2903.8,3.4437145]
[1766707224883,0.9334,2905.1,2903.6,0.9548]
[1766707225075,6.88468158,2905.0,2903.7,3.44384057]
[1766707225270,0.81620816,2904.9,2903.7,3.44384057]
[1766707227089,4.25875195,2904.9,2903.6,4.39875298]
[1766707227284,0.81620816,2904.9,2903.6,7.84275353]
[1766707227889,0.81620816,2904.9,2904.0,0.002]
[1766707228462,0.001,2905.3,2904.0,0.9568]
[1766707228667,0.899,2905.2,2904.2,0.9548]
[1766707228892,0.0344,2905.1,2904.3,0.0344317]
[1766707229097,0.0344,2905.1,2904.3,3.47752349]
[1766707230368,0.0344,2905.1,2904.4,0.9548]
[1766707230572,0.001,2905.3,2904.6,0.9548]
[1766707230991,0.001,2905.3,2904.7,0.03442696]
[1766707231202,0.001,2905.3,2904.8,0.98922577]
[1766707231403,0.001,2905.5,2904.9,0.9548]
[1766707231697,0.001,2905.5,2905.1,0.9548]
[1766707233176,0.001,2905.5,2905.2,3.44210381]
[1766707233584,0.001,2905.5,2905.1,3.44217622]
[1766707234296,0.001,2905.5,2904.8,0.9548]
[1766707234600,0.001,2905.5,2904.9,3.4423937]
[1766707234815,0.001,2905.5,2904.6,3.44273452]
[1766707235174,0.001,2905.5,2904.6,3.44274568]
[1766707235375,0.899,2905.4,2904.5,4.39767973]
[1766707235579,0.0344,2905.3,2904.3,3.44311695]
[1766707235805,0.0344,2905.3,2904.2,0.9548]
[1766707235994,0.0344,2905.3,2904.3,3.44310669]
[1766707236686,0.0344,2905.3,2904.2,0.9548]
[1766707237008,0.0344,2905.3,2904.3,3.4431041]
[1766707237201,0.0344,2905.3,2904.2,4.39803623]
[1766707237406,0.0344,2905.3,2904.3,3.44310714]
[1766707237606,0.94202629,2905.2,2904.4,0.9548]
[1766707237809,0.94202629,2905.2,2904.5,0.01726621]
[1766707238006,0.04302629,2905.2,2904.5,0.01726621]
[1766707238212,0.899,2905.2,2904.5,0.9548]
[1766707238412,0.899,2905.3,2904.5,0.9548]
[1766707239313,0.04302629,2905.2,2904.3,0.9548]
[1766707239604,0.04402185,2905.5,2904.4,0.9548]
[1766707239799,0.94202333,2905.4,2904.4,0.9548]
[1766707240208,0.94202333,2905.4,2904.3,0.43394675]
[1766707240399,0.899,2905.3,2904.2,7.84137804]
[1766707240598,0.04302629,2905.2,2904.3,0.01726859]
[1766707240799,0.04302629,2905.2,2904.3,0.97206859]
[1766707240983,0.899,2905.1,2904.3,0.97206859]
[1766707241185,0.04402185,2905.5,2904.4,0.9548]
[1766707241403,0.899,2905.3,2904.5,3.44293337]
[1766707241603,0.04302629,2905.2,2904.5,3.44293337]
[1766707241798,0.04302629,2905.2,2904.5,7.84066674]
[1766707242087,0.001,2905.4,2904.6,0.9548]
[1766707244314,0.001,2905.4,2904.8,1.2089]
[1766707246316,0.001,2905.4,2904.8,4.651365]
[1766707246891,0.001,2905.4,2904.8,8.0939428]
[1766707247208,0.001,2905.4,2904.8,4.651365]
[1766707247719,0.001,2905.4,2904.8,8.0939428]
[1766707248092,0.001,2905.4,2904.9,1.2089]
[1766707248494,0.001,2905.4,2905.0,3.44234079]
[1766707249416,0.001,2905.4,2905.0,4.72604079]
[1766707249597,0.001,2905.4,2905.1,1.2837]
[1766707250520,0.001,2905.4,2905.1,4.72584375]
[1766707250691,0.001,2905.4,2905.1,1.2837]
[1766707250897,0.001,2905.4,2905.1,4.72589011]
[1766707251504,0.001,2905.4,2904.4,0.9]
[1766707251505,30.2,2904.8,2902.0,0.002]
[1766707251691,30.2,2904.8,2901.7,1.2857]
[1766707251692,0.01033395,2902.5,2901.7,0.002]
[1766707251894,0.01033395,2902.7,2901.8,1.2837]
[1766707252095,0.01033395,2902.7,2901.9,1.2837]
[1766707252492,0.03610766,2902.9,2902.0,1.2837]
[1766707252725,0.01033395,2902.9,2902.0,1.2837]
[1766707253026,0.0103368,2902.7,2902.0,1.2837]
[1766707253593,0.03610766,2902.9,2902.0,1.2837]
[1766707253799,0.01033395,2902.9,2902.1,1.3181578]
[1766707254202,0.02577371,2903.1,2902.1,1.3181578]
[1766707254422,0.0103368,2903.1,2902.3,3.44554318]
[1766707254629,0.0103368,2903.1,2902.4,1.2837]
[1766707255524,0.0103368,2902.9,2902.2,0.9]
[1766707255702,0.0103368,2902.7,2902.2,0.9]
[1766707257001,0.0103368,2902.7,2902.2,4.3456472]
[1766707257625,0.0103368,2902.7,2902.2,0.77849755]
[1766707257829,0.0103368,2902.5,2902.0,0.002]
[1766707258124,0.0103368,2903.6,2902.3,1.2837]
[1766707258305,0.0103368,2903.4,2902.3,1.2837]
[1766707258499,0.0103368,2903.6,2902.4,1.2837]
[1766707258822,0.0103368,2903.4,2902.4,1.2837]
[1766707259205,0.0103368,2903.2,2902.4,1.2837]
[1766707260621,0.0103368,2903.6,2902.6,1.2837]
[1766707260822,0.0103368,2904.0,2902.8,1.2837]
[1766707261026,0.0103368,2904.2,2903.0,1.2837]
[1766707261215,0.34537117,2904.1,2903.2,1.2837]
[1766707261414,0.34537117,2904.1,2903.3,0.03444356]
[1766707261834,0.39023916,2904.0,2903.2,2.1837]
[1766707262929,0.0103368,2904.0,2903.3,1.31814356]
[1766707263337,0.0103368,2904.0,2903.3,1.2837]
[1766707264326,0.0103368,2904.0,2903.2,3.44445553]
[1766707264523,0.0103368,2904.2,2903.4,2.1837]
[1766707265326,0.0103368,2904.2,2903.4,0.14935313]
[1766707265327,0.0103368,2904.0,2903.4,0.14935313]
[1766707265503,0.0103368,2904.0,2903.3,0.9]
[1766707266136,0.0103368,2904.0,2903.1,1.2837]
[1766707266346,0.4500754,2904.0,2903.1,4.72825674]
[1766707266548,0.4500754,2904.0,2903.2,0.03444475]
[1766707266840,0.0103368,2904.2,2903.4,4.72785862]
[1766707266841,0.9093368,2904.2,2903.4,4.72785862]
[1766707267007,0.0103368,2904.2,2903.5,0.03444119]
[1766707267209,0.0447368,2904.5,2903.5,1.2837]
[1766707267412,0.0344,2904.7,2903.6,0.03444]
[1766707267634,1.58487368,2904.7,2903.7,1.31813881]
[1766707267832,0.0103368,2904.6,2903.7,1.2837]
[1766707268014,0.0344,2904.5,2903.7,1.2837]
[1766707269540,0.0344,2904.5,2903.7,4.72758066]
[1766707270710,0.0344,2904.5,2903.7,1.2837]
[1766707271653,0.0344,2904.5,2903.7,4.72757639]
[1766707271843,0.0103368,2904.6,2903.8,1.31813763]
[1766707272024,0.0344,2904.7,2903.8,1.31813763]
[1766707272338,0.0344,2904.8,2903.9,1.2837]
[1766707273126,0.0344,2904.8,2904.1,1.2837]
[1766707273318,0.0103368,2904.9,2904.3,1.2837]
[1766707273519,0.0344,2904.8,2904.3,1.2837]
[1766707273842,0.0103368,2904.9,2904.3,1.2837]
[1766707274042,0.0344,2905.0,2904.3,1.2837]
[1766707274243,0.0103368,2905.1,2904.5,1.302]
[1766707274446,0.0103368,2905.1,2903.8,0.9]
[1766707274649,0.0103368,2905.1,2904.4,1.302]
[1766707275245,0.0103368,2905.1,2904.3,0.9]
[1766707275426,0.0447368,2905.1,2904.3,5.64516045]
[1766707275748,0.0103368,2905.1,2904.4,1.302]
[1766707276547,0.0447368,2905.3,2904.4,1.302]
[1766707276753,3.48674139,2905.3,2904.4,1.302]
[1766707276953,0.34877414,2905.2,2904.4,1.302]
[1766707277163,0.0344,2905.1,2904.4,1.302]
[1766707277373,0.0344,2905.2,2904.4,1.302]
[1766707277576,0.0344,2905.1,2904.4,1.302]
[1766707277743,0.0344,2905.2,2904.4,3.44303016]
[1766707277929,0.0103368,2904.7,2903.0,1.302]
[1766707278260,0.0344,2904.6,2903.9,1.302]
[1766707278821,0.0103368,2904.5,2903.8,4.34368862]
[1766707279025,0.0103368,2904.5,2903.8,0.9]
[1766707279254,0.0344,2904.4,2903.8,0.9]
[1766707279468,0.0103368,2904.5,2903.8,0.9]
[1766707279671,0.0344,2904.4,2903.8,0.9]
[1766707279833,0.0103368,2904.5,2903.8,0.9]
[1766707280032,0.0103368,2904.3,2903.3,2.204]
[1766707280365,0.0344,2904.2,2903.4,0.03444237]
[1766707280526,0.0344,2904.2,2903.4,4.78061484]
[1766707280723,0.0344,2904.2,2903.4,1.33644237]
[1766707280950,0.0344,2904.2,2903.4,1.302]
[1766707281947,0.0103368,2904.1,2903.3,0.002]
[1766707282125,0.0103368,2903.9,2903.3,0.002]
[1766707282452,0.0447368,2903.9,2903.3,0.002]
[1766707282835,0.0103368,2903.9,2903.3,0.002]
[1766707283043,0.0103368,2903.9,2903.3,3.44635331]
[1766707283358,0.0447368,2904.1,2903.4,0.03444237]
[1766707283554,0.0103368,2904.1,2903.4,4.7806697]
[1766707284166,0.0447368,2904.3,2903.5,1.302]
[1766707284460,0.0447368,2904.3,2903.6,0.03444]
[1766707284672,0.39454571,2904.3,2903.6,0.03444]
[1766707286058,0.0447368,2904.3,2903.6,0.03444]
[1766707286257,0.0457368,2904.3,2903.6,0.03444]
[1766707286566,0.001,2904.3,2903.5,4.74610883]
[1766707286962,0.001,2904.3,2903.5,1.302]
[1766707288072,0.0113368,2904.3,2903.5,1.302]
[1766707288257,0.36123753,2904.3,2903.5,1.302]
[1766707288459,0.0344,2904.2,2903.5,1.302]
[1766707289239,0.0113368,2904.3,2903.5,1.302]
[1766707289440,0.0113368,2904.3,2903.5,4.746079]
[1766707289636,0.0113368,2904.3,2903.5,3.444079]
[1766707289879,0.0113368,2904.3,2903.6,1.302]
[1766707290085,0.001,2904.3,2903.8,1.302]
[1766707292156,0.001,2904.3,2903.9,1.302]
[1766707292356,0.001,2904.3,2903.8,3.44374478]
[1766707292357,0.001,2904.3,2903.8,3.44367989]
[1766707292672,0.001,2904.3,2903.9,2.202]
[1766707292970,0.001,2904.3,2904.0,1.302]
[1766707293140,0.001,2904.3,2903.9,0.9]
[1766707293341,0.001,2904.3,2903.9,2.202]
[1766707293532,0.001,2904.3,2904.0,1.302]
[1766707294366,0.001,2904.3,2904.0,4.74552041]
[1766707295370,0.001,2904.3,2904.0,1.302]
[1766707296166,0.001,2904.3,2904.0,3.4435016]
[1766707296372,0.0447368,2905.0,2904.1,1.33643407]
[1766707296576,0.39218359,2905.3,2904.1,1.33643407]
[1766707296777,0.0344,2905.2,2904.1,1.33643407]
[1766707297073,0.001,2905.3,2904.1,1.302]
[1766707297257,0.0354,2905.3,2904.1,1.302]
[1766707297458,0.001,2905.3,2904.1,1.302]
[1766707297659,0.0354,2905.3,2904.1,1.302]
[1766707297983,0.001,2905.3,2904.1,1.302]
[1766707298342,0.001,2905.3,2904.3,1.302]
[1766707298546,0.001,2905.3,2904.5,1.302]
[1766707299276,0.001,2905.4,2904.7,1.302]
[1766707300552,0.001,2905.4,2904.9,1.302]
[1766707300752,0.001,2905.4,2905.0,0.9]
[1766707301585,0.001,2905.4,2905.1,1.7875]
[1766707301768,0.001,2905.4,2905.0,0.9]
[1766707301972,0.001,2905.5,2905.1,1.7875]
[1766707302173,0.0344,2905.8,2905.1,1.7875]
[1766707302380,0.0344,2905.8,2905.3,1.7875]
[1766707302568,0.0344,2905.8,2905.0,2.6875]
[1766707302771,0.0344,2905.8,2905.1,1.7875]
[1766707302971,0.0344,2905.8,2905.2,1.7875]
[1766707303172,0.0447368,2906.1,2905.3,3.44196911]
[1766707303492,0.0344,2906.0,2905.4,1.82191866]
[1766707303688,0.0344,2906.0,2905.5,0.9]
[1766707303894,0.38297061,2906.0,2905.4,0.9]
[1766707304096,0.38297061,2906.0,2905.4,0.85]
[1766707304387,0.0344,2906.0,2905.4,0.85]
[1766707304594,0.0344,2906.0,2905.4,4.29182911]
[1766707304889,0.0344,2906.2,2905.4,6.21002911]
[1766707305661,0.0344,2906.2,2905.4,9.65189597]
[1766707305863,0.0344,2906.2,2905.4,2.7682]
[1766707306163,0.0344,2906.2,2905.4,6.21005969]
[1766707306384,0.0344,2906.2,2905.4,2.7682]
[1766707307384,0.34865437,2906.1,2905.4,2.7682]
[1766707307572,0.001,2906.6,2905.4,2.7682]
[1766707307573,0.001,2906.6,2905.5,1.95261748]
[1766707307775,0.001,2906.6,2905.5,1.9182]
[1766707307972,0.001,2906.7,2905.5,1.9182]
[1766707308694,0.001,2906.2,2905.7,1.9182]
[1766707308998,0.0103368,2907.2,2905.9,1.9182]
[1766707309291,0.001,2907.4,2906.1,1.9182]
[1766707309793,0.0103368,2907.3,2905.7,1.9182]
[1766707309978,3.43980943,2907.2,2906.1,1.9182]
[1766707310166,0.34508094,2907.0,2906.1,1.9182]
[1766707311268,3.7850857,2907.0,2906.0,0.9]
[1766707311503,0.0103368,2906.9,2905.8,4.34138826]
[1766707311702,6.608468,2906.8,2904.6,1.9182]
[1766707311866,0.0103368,2906.9,2905.8,3.44133013]
[1766707312065,0.0103368,2906.9,2905.8,5.35953013]
[1766707312266,0.0103368,2906.9,2905.8,1.9182]
[1766707312603,0.0103368,2906.9,2905.7,1.9182]
[1766707312768,0.0103368,2906.9,2905.8,0.03441393]
[1766707313104,0.68913463,2906.8,2905.7,1.9182]
[1766707313300,4.12939652,2906.8,2905.7,5.35970655]
[1766707314201,0.68913463,2906.8,2905.7,5.35970655]
[1766707314400,4.12934901,2906.8,2905.7,5.35970655]
[1766707314609,0.41396858,2906.7,2905.7,5.35970655]
[1766707315304,0.41396858,2906.7,2905.8,1.95261393]
[1766707316208,0.0113368,2907.0,2905.8,1.9182]
[1766707316700,3.45139938,2907.0,2905.8,1.9182]
[1766707316901,6.89146196,2907.0,2905.8,1.9182]
[1766707317084,6.89146196,2907.0,2905.9,0.9]
[1766707317404,6.89146196,2907.0,2905.8,1.9182]
[1766707317588,0.6891462,2906.9,2905.8,1.9182]
[1766707318404,0.6891462,2906.9,2905.6,0.902]
[1766707318706,0.0103368,2906.6,2905.4,3.44186476]
[1766707319003,0.9093368,2906.6,2905.5,3.44174838]
[1766707319396,0.9093368,2906.6,2905.4,3.44182767]
[1766707319572,0.43497367,2906.5,2905.4,6.88369453]
[1766707319772,0.9093368,2906.6,2905.4,6.88369453]
[1766707320277,7.79023808,2906.6,2905.4,1.9182]
[1766707320604,4.34978744,2906.6,2905.4,1.9182]
[1766707320783,0.75806082,2906.8,2905.4,1.9182]
[1766707320975,0.001,2907.0,2905.4,1.9182]
[1766707320976,4.33998905,2907.0,2905.4,1.9182]
[1766707321175,7.005965,2906.9,2905.4,1.9182]
[1766707321706,3.44020916,2906.8,2905.6,1.9182]
[1766707321913,6.88041832,2906.8,2905.6,1.9182]
[1766707322115,0.68907551,2906.7,2905.6,1.9182]
[1766707322982,0.001,2907.0,2905.8,1.9182]
[1766707323188,0.001,2907.0,2906.0,1.9182]
[1766707323612,0.001,2907.0,2906.2,1.9182]
[1766707325705,0.001,2907.0,2906.4,1.9182]
[1766707325908,0.001,2907.0,2906.6,1.9182]
[1766707326110,0.001,2907.4,2906.8,1.9182]
[1766707326615,0.001,2907.4,2907.0,1.9182]
[1766707326912,0.001,2907.4,2907.1,1.95259854]
[1766707327513,0.001,2907.7,2907.1,1.95259854]
[1766707327683,0.001,2908.2,2907.2,1.9182]
[1766707327885,1.0321,2908.1,2907.2,1.9182]
[1766707328085,0.001,2908.2,2907.2,1.9182]
[1766707330701,0.001,2908.2,2907.3,1.9182]
[1766707330894,0.001,2908.2,2907.2,3.43971999]
[1766707330895,0.001,2908.2,2907.5,1.9182]
[1766707332619,0.001,2908.2,2907.4,0.9]
[1766707334824,0.001,2908.2,2907.4,3.6209]
[1766707335025,0.34493545,2908.2,2907.5,0.0343938]
[1766707335198,0.001,2908.2,2907.5,0.0343938]
[1766707335601,0.001,2908.2,2907.4,3.6209]
[1766707336110,0.001,2908.2,2906.7,3.4402358]
[1766707336111,22.661708,2908.1,2906.7,2.7209]
[1766707336316,2.89717329,2908.0,2906.8,0.899]
[1766707336512,0.0103368,2907.9,2906.7,2.7209]
[1766707336711,0.0103368,2907.9,2906.1,3.44296796]
[1766707336712,18.675886,2907.5,2906.1,3.44296796]
[1766707336918,0.898,2907.4,2906.3,3.44079189]
[1766707337107,0.898,2907.3,2906.5,2.7209]
[1766707337311,0.898,2907.5,2906.6,0.03440445]
[1766707337513,6.4803368,2907.9,2906.7,2.7209]
[1766707337821,6.4803368,2907.9,2906.8,2.75530209]
[1766707338026,9.90893372,2907.9,2906.8,2.75530209]
[1766707338322,0.898,2907.8,2906.8,2.7209]
[1766707338523,1.08069337,2907.7,2906.8,2.7209]
[1766707339929,1.08069337,2907.7,2906.9,2.7553009]
[1766707340709,1.08069337,2907.7,2906.9,2.7209]
[1766707341225,1.08069337,2907.7,2907.0,0.03439972]
[1766707341428,0.001,2907.8,2907.0,2.75529972]
[1766707342633,0.001,2908.2,2907.1,2.7209]
[1766707342834,0.001,2908.2,2907.3,2.7209]
[1766707343037,0.001,2908.2,2907.5,2.7209]
[1766707343534,0.001,2908.2,2907.3,0.899]
[1766707343734,0.001,2908.2,2907.3,4.70058216]
[1766707344033,0.001,2908.2,2907.5,2.7209]
[1766707344432,0.001,2908.2,2907.6,2.7209]
[1766707345936,0.001,2908.6,2907.8,2.7209]
[1766707346234,0.001,2908.6,2907.6,6.87848757]
[1766707346235,0.001,2908.6,2908.0,2.7209]
[1766707346438,0.001,2909.0,2908.0,3.08289]
[1766707346734,3.43861032,2909.0,2908.0,3.08289]
[1766707346912,6.87622064,2909.0,2908.0,2.7209]
[1766707347114,6.87622064,2909.0,2908.0,1e-08]
[1766707347640,3.43861032,2909.0,2908.0,1e-08]
[1766707347848,6.87622064,2909.0,2908.0,1e-08]
[1766707348013,0.70514017,2908.9,2908.0,1e-08]
[1766707348409,3.02214017,2908.9,2908.0,1e-08]
[1766707348615,0.001,2908.2,2908.0,1e-08]
[1766707348910,0.001,2908.2,2907.5,2.7209]
[1766707349866,0.001,2908.2,2906.1,0.002]
[1766707349867,0.0103368,2906.7,2906.1,0.002]
[1766707350163,0.0103368,2906.5,2905.8,3.44139307]
[1766707350313,0.0103368,2906.3,2905.7,2.7229]
[1766707351550,0.0103368,2906.3,2905.7,6.16438085]
[1766707352482,0.0103368,2906.5,2905.7,9.60589236]
[1766707353193,0.0103368,2908.0,2906.3,2.7209]
[1766707353333,0.0103368,2907.5,2906.6,2.7209]
[1766707354052,0.0103368,2907.8,2906.6,2.7209]
[1766707354351,0.35628701,2907.8,2906.6,3.08289]
[1766707354838,0.0103368,2907.8,2906.6,3.08289]
[1766707355234,0.0103368,2907.8,2906.8,2.7209]
[1766707355778,0.0103368,2908.0,2906.9,0.899]
[1766707355938,0.0103368,2908.0,2907.0,2.7209]
[1766707356339,0.0113368,2908.2,2907.0,2.7209]
[1766707356574,0.3449813,2908.1,2907.0,2.7209]
[1766707356774,0.001,2908.2,2907.2,2.7209]
[1766707356989,0.001,2908.2,2907.4,2.7209]
[1766707357473,0.001,2908.0,2907.0,2.7209]
[1766707357649,0.0103368,2907.9,2907.0,2.7209]
[1766707358953,0.0103368,2907.9,2906.9,0.899]
[1766707359538,3.44933275,2907.9,2906.9,0.899]
[1766707359764,0.0103368,2907.7,2906.8,0.002]
[1766707360060,0.898,2907.6,2906.8,0.002]
[1766707360267,0.898,2907.6,2906.6,6.16133267]
[1766707361876,0.898,2907.6,2906.6,2.7209]
[1766707362047,4.33730581,2907.6,2906.6,2.7209]
[1766707362248,0.43476426,2907.5,2906.6,2.7209]
[1766707363449,0.43476426,2907.5,2906.6,6.1612968]
[1766707363747,0.898,2907.6,2906.6,6.1612968]
[1766707364150,0.898,2907.6,2906.6,6.16131693]
[1766707364452,0.898,2907.5,2906.6,6.16131693]
[1766707364758,0.898,2907.5,2906.7,2.5677]
[1766707366385,0.43372628,2907.4,2906.7,2.5677]
[1766707366898,0.43372628,2907.4,2906.5,3.4425537]
[1766707367100,0.0103368,2907.3,2906.3,2.5677]
[1766707368587,3.44996091,2907.3,2906.3,2.5677]
[1766707368770,0.38836872,2907.2,2906.3,2.5677]
[1766707369377,3.44998254,2907.3,2906.3,2.5677]
[1766707369579,6.88962828,2907.3,2905.8,0.899]
[1766707369782,0.0103368,2907.1,2905.9,2.6098]
[1766707369978,0.0103368,2906.9,2905.7,2.6118]
[1766707370188,0.898,2906.8,2905.7,2.6118]
[1766707370395,0.898,2906.8,2905.7,6.05324716]
[1766707370773,0.43484406,2906.7,2905.7,9.49475867]
[1766707371009,0.898,2906.8,2905.7,6.05324716]
[1766707371193,4.33830652,2906.8,2905.7,6.05324916]
[1766707371397,0.898,2906.8,2905.7,6.05324916]
[1766707373009,6.05924344,2906.8,2905.7,2.6118]
[1766707373217,0.0103368,2906.7,2905.7,2.6118]
[1766707373406,1.29500411,2906.6,2905.7,2.6118]
[1766707373612,1.29500411,2906.6,2905.6,0.03641629]
[1766707373812,0.0103368,2906.5,2905.6,0.03641629]
[1766707375501,0.899,2906.4,2905.6,3.44359554]
[1766707375700,0.899,2906.4,2905.6,6.05339554]
[1766707375921,0.899,2906.3,2905.6,2.6118]
[1766707376121,0.899,2906.3,2905.6,6.05342121]
[1766707376617,0.899,2906.3,2905.6,0.002]
[1766707376800,0.899,2906.3,2905.6,2.6118]
[1766707377001,0.899,2906.3,2905.6,2.87338]
[1766707377401,0.0103368,2906.5,2905.6,2.87338]
[1766707377699,0.899,2906.4,2905.6,2.87338]
[1766707378294,0.899,2906.4,2905.6,2.6118]
[1766707379226,4.33968356,2906.4,2905.5,0.002]
[1766707379400,0.0103368,2906.3,2905.5,0.002]
[1766707380311,1.29500411,2906.6,2905.7,2.6098]
[1766707380517,0.899,2906.5,2905.8,2.64421393]
[1766707380731,6.47,2906.7,2905.8,2.64421393]
[1766707380898,7.369,2906.7,2905.8,2.64421393]
[1766707381093,7.369,2906.7,2906.0,2.6098]
[1766707381314,7.369,2906.7,2906.1,2.64421037]
[1766707381736,0.03441037,2906.6,2905.6,3.44157206]
[1766707382025,0.0103368,2906.5,2905.5,0.002]
[1766707382233,0.03441037,2906.4,2905.5,0.002]
[1766707383910,0.0103368,2906.3,2905.5,0.002]
[1766707384100,0.93341037,2906.2,2905.5,0.002]
[1766707384509,0.93341037,2906.2,2905.4,0.002]
[1766707384810,0.0103368,2906.1,2905.1,0.01]
[1766707385122,0.03441037,2906.0,2905.1,0.01]
[1766707385621,0.03441037,2906.0,2905.1,3.45219538]
[1766707386038,0.03441037,2906.0,2905.1,0.01]
[1766707386327,0.03441037,2906.0,2904.9,0.002]
[1766707386328,0.0103368,2905.9,2904.9,0.002]
[1766707386524,0.03441037,2905.8,2904.9,0.002]
[1766707386727,0.9093368,2905.7,2904.9,0.002]
[1766707386898,0.03441037,2905.6,2904.9,0.002]
[1766707387303,0.9093368,2905.7,2904.6,2.6098]
[1766707387499,0.0103368,2905.5,2904.6,2.6098]
[1766707387726,0.38305521,2905.4,2904.5,0.002]
[1766707388031,0.0103368,2905.3,2904.5,0.002]
[1766707388226,0.899,2905.2,2904.5,0.002]
[1766707388399,0.03441037,2905.1,2904.5,0.002]
[1766707390647,0.899,2905.2,2904.4,0.002]
[1766707390805,0.03441037,2905.1,2904.4,0.002]
[1766707391240,0.47299004,2905.1,2904.4,0.002]
[1766707391548,0.03441037,2905.1,2904.4,0.002]
[1766707391906,0.899,2905.0,2904.4,0.002]
[1766707392108,0.03441037,2904.9,2904.4,0.002]
[1766707392609,0.03441037,2904.9,2904.4,0.03643051]
[1766707394008,0.93341037,2904.9,2904.4,0.03643051]